bitfinex-derivatives/quotes_BTCF0:USTF0_20240814
["timestamp","ask_amount","ask_price","bid_price","bid_amount"]
[1723626004641,0.015,60920.0,60919.0,0.48748508]
[1723626004841,0.015,60920.0,60919.0,0.60098508]
[1723626005041,0.015,60920.0,60919.0,0.50302568]
[1723626005237,0.015,60920.0,60919.0,0.25098095]
[1723626005547,0.09704,60920.0,60919.0,0.25098095]
[1723626005738,0.09704,60920.0,60919.0,0.25098448]
[1723626005934,0.09704,60920.0,60919.0,0.21914621]
[1723626006145,0.09704,60920.0,60919.0,0.09414884]
[1723626006537,0.09704,60920.0,60919.0,0.21914712]
[1723626007637,0.09704,60920.0,60919.0,0.01248711]
[1723626007841,0.12363559,60920.0,60919.0,0.01248711]
[1723626009247,0.12363559,60920.0,60919.0,0.12598711]
[1723626010145,0.12363559,60920.0,60919.0,0.01248711]
[1723626010339,0.20567559,60920.0,60919.0,0.01248711]
[1723626011345,0.31917559,60920.0,60919.0,0.002]
[1723626011745,0.3551539,60920.0,60919.0,0.002]
[1723626012650,0.12363559,60920.0,60919.0,0.002]
[1723626014848,0.09704,60920.0,60919.0,0.002]
[1723626015149,0.09704,60920.0,60919.0,0.197541]
[1723626015846,0.09704,60920.0,60919.0,0.1155]
[1723626019357,0.09704,60920.0,60919.0,0.55796173]
[1723626019560,0.09704,60920.0,60919.0,0.4763]
[1723626021758,0.015,60920.0,60919.0,0.4763]
[1723626021954,0.015,60920.0,60919.0,0.558341]
[1723626022150,0.015,60920.0,60919.0,0.68333743]
[1723626023452,0.015,60920.0,60919.0,0.558341]
[1723626023747,0.015,60920.0,60919.0,0.68333382]
[1723626024149,0.015,60920.0,60919.0,0.60129282]
[1723626024455,0.015,60920.0,60919.0,0.55783398]
[1723626024655,0.015,60920.0,60919.0,0.4763]
[1723626025055,0.09704,60920.0,60919.0,0.4763]
[1723626030055,0.09704,60920.0,60919.0,0.54149961]
[1723626030859,0.09704,60920.0,60919.0,0.18069961]
[1723626031553,0.09704,60920.0,60919.0,0.1155]
[1723626032754,0.09704,60920.0,60919.0,0.18069961]
[1723626032954,0.09704,60920.0,60919.0,0.1155]
[1723626034271,0.09704,60920.0,60919.0,0.002]
[1723626034565,0.09704,60920.0,60919.0,0.1155]
[1723626034873,0.15724,60920.0,60919.0,0.1155]
[1723626036370,0.09704,60920.0,60919.0,0.1155]
[1723626036666,0.015,60920.0,60919.0,0.18069961]
[1723626036865,0.015,60920.0,60919.0,0.32203276]
[1723626037173,0.015,60920.0,60919.0,0.24049878]
[1723626037469,0.015,60920.0,60919.0,0.32194257]
[1723626037671,0.015,60920.0,60919.0,0.32253978]
[1723626041365,0.015,60920.0,60919.0,0.197541]
[1723626041560,0.015,60920.0,60919.0,0.32253898]
[1723626049878,0.015,60920.0,60919.0,0.32253934]
[1723626050083,0.097041,60920.0,60919.0,0.12699834]
[1723626050378,0.097041,60920.0,60919.0,0.24049834]
[1723626051276,0.097041,60920.0,60919.0,0.24049836]
[1723626051579,0.179082,60920.0,60919.0,0.32197411]
[1723626051774,0.179082,60920.0,60919.0,0.002]
[1723626052276,0.082046,60916.0,60915.0,0.08125023]
[1723626052480,0.082046,60916.0,60911.0,0.0979594]
[1723626052481,0.59926167,60916.0,60911.0,0.04891379]
[1723626052696,0.082053,60911.0,60910.0,0.04891379]
[1723626052980,0.14010106,60911.0,60904.0,0.04893647]
[1723626053276,0.164136,60900.0,60899.0,0.06522883]
[1723626053485,0.78740658,60900.0,60897.0,0.04895422]
[1723626053788,0.082072,60897.0,60888.0,0.04895422]
[1723626053968,0.4743,60891.0,60888.0,0.04895422]
[1723626054572,0.082084,60888.0,60887.0,0.12385707]
[1723626056672,0.082084,60888.0,60887.0,0.1135]
[1723626056868,0.082085,60887.0,60886.0,0.01053385]
[1723626057073,0.082085,60887.0,60886.0,0.0002463]
[1723626059474,0.001,60888.0,60886.0,0.0002463]
[1723626059675,0.001,60888.0,60887.0,0.1135]
[1723626060381,0.001,60888.0,60887.0,0.195585]
[1723626061278,0.001,60888.0,60887.0,0.69881243]
[1723626061575,0.001,60888.0,60887.0,0.81271243]
[1723626061771,0.0823193,60896.0,60887.0,0.81271243]
[1723626061974,0.0823193,60896.0,60888.0,0.082084]
[1723626062588,0.0823193,60896.0,60888.0,0.242084]
[1723626063682,0.0002463,60896.0,60891.0,0.3608]
[1723626063886,0.0002463,60896.0,60891.0,0.58288]
[1723626064786,0.0022463,60896.0,60891.0,0.58288]
[1723626065490,0.082077,60893.0,60891.0,0.5008]
[1723626065681,0.082075,60895.0,60891.0,0.5138]
[1723626066874,0.0012463,60896.0,60891.0,0.5138]
[1723626067279,0.0022463,60896.0,60891.0,0.5248]
[1723626067786,0.0012463,60896.0,60891.0,0.5118]
[1723626067980,0.0012463,60896.0,60891.0,0.593879]
[1723626068184,0.0002463,60896.0,60891.0,0.582879]
[1723626068489,0.0012463,60896.0,60891.0,0.595879]
[1723626068687,0.001,60893.0,60891.0,0.604879]
[1723626069184,0.0012463,60896.0,60891.0,0.595879]
[1723626069884,0.0032463,60896.0,60891.0,0.619879]
[1723626070189,0.0032463,60896.0,60891.0,0.608879]
[1723626070683,0.0022463,60896.0,60891.0,0.608879]
[1723626070889,0.001,60893.0,60891.0,0.619879]
[1723626072087,0.001,60893.0,60892.0,0.082078]
[1723626072384,0.001,60893.0,60892.0,0.252078]
[1723626072686,0.0002463,60896.0,60894.0,0.082075]
[1723626072883,0.0002463,60896.0,60894.0,0.252075]
[1723626073682,0.0002463,60896.0,60894.0,0.612875]
[1723626076785,0.0002463,60896.0,60894.0,0.252075]
[1723626077185,0.0002463,60896.0,60894.0,0.260075]
[1723626077186,0.0012463,60896.0,60894.0,0.260075]
[1723626077387,0.0012463,60896.0,60895.0,0.082074]
[1723626077583,0.0012463,60896.0,60895.0,0.242074]
[1723626078182,0.0022463,60896.0,60895.0,0.242074]
[1723626078582,0.2838,60911.0,60895.0,0.242074]
[1723626078583,0.054,60910.0,60895.0,1.495514]
[1723626078889,0.054,60910.0,60904.0,0.3608]
[1723626079083,0.136055,60910.0,60904.0,0.5208]
[1723626079590,0.136055,60910.0,60904.0,0.56975422]
[1723626079786,0.054,60910.0,60908.0,0.082056]
[1723626079996,0.0822963,60913.0,60908.0,0.082056]
[1723626081689,0.0822963,60913.0,60909.0,0.04895422]
[1723626082088,0.18522253,60912.0,60908.0,0.04408437]
[1723626082282,0.18522253,60912.0,60910.0,0.082054]
[1723626082283,0.07033972,60911.0,60910.0,0.082054]
[1723626082688,0.0265983,60911.0,60910.0,0.3608]
[1723626082887,0.02659711,60912.0,60910.0,0.3608]
[1723626083089,0.02659711,60911.0,60910.0,0.3608]
[1723626083285,0.06978272,60912.0,60910.0,0.3608]
[1723626083495,0.1247421,60911.0,60910.0,0.3608]
[1723626083799,0.09814511,60911.0,60910.0,0.3608]
[1723626084291,0.02659699,60911.0,60910.0,0.442854]
[1723626084495,0.02659657,60911.0,60910.0,0.36896732]
[1723626084690,0.0142463,60913.0,60910.0,0.36896732]
[1723626084995,0.03559636,60912.0,60910.0,0.36996732]
[1723626085187,0.009,60912.0,60910.0,0.36996732]
[1723626085381,0.08173059,60911.0,60910.0,0.45202132]
[1723626086291,0.09073059,60911.0,60910.0,0.45202132]
[1723626086492,0.009,60911.0,60910.0,0.45202132]
[1723626086694,0.03559726,60911.0,60910.0,0.45202132]
[1723626086890,0.04459726,60911.0,60910.0,0.444854]
[1723626089089,0.04459726,60911.0,60910.0,0.614854]
[1723626090093,0.018,60911.0,60910.0,0.614854]
[1723626091186,0.018,60911.0,60910.0,0.5328]
[1723626091391,0.100053,60911.0,60910.0,0.5328]
[1723626097098,0.16924022,60911.0,60910.0,0.5328]
[1723626097901,0.16924022,60911.0,60910.0,0.6463]
[1723626098206,0.04459908,60911.0,60910.0,0.728354]
[1723626098797,0.04459758,60911.0,60910.0,0.728354]
[1723626098996,0.08760035,60911.0,60910.0,0.67089567]
[1723626099800,0.02755981,60911.0,60910.0,0.6791174]
[1723626099994,0.0002463,60913.0,60912.0,0.082051]
[1723626100195,0.0002463,60913.0,60912.0,0.242051]
[1723626100504,0.0268434,60913.0,60912.0,0.242051]
[1723626100900,0.06768918,60913.0,60912.0,0.242051]
[1723626101298,0.0268434,60913.0,60912.0,0.242051]
[1723626103105,0.0268434,60913.0,60912.0,0.243051]
[1723626103308,0.0268434,60913.0,60912.0,0.735571]
[1723626103808,0.0268434,60913.0,60912.0,0.74605227]
[1723626104307,0.0268434,60913.0,60912.0,0.80235227]
[1723626104498,0.0268434,60913.0,60912.0,0.30983227]
[1723626105108,0.0002463,60913.0,60912.0,0.30983227]
[1723626105402,0.0002463,60913.0,60912.0,0.67263227]
[1723626105607,0.0002463,60913.0,60912.0,0.61633227]
[1723626106101,0.0002463,60913.0,60912.0,0.37428127]
[1723626106802,0.0822963,60913.0,60912.0,0.37428127]
[1723626107208,0.1357963,60913.0,60912.0,0.01348127]
[1723626107399,0.1357963,60913.0,60912.0,0.003]
[1723626108312,0.1357963,60913.0,60912.0,0.05171761]
[1723626109712,0.1357963,60913.0,60912.0,0.05071761]
[1723626111113,0.1357963,60913.0,60912.0,0.002]
[1723626111503,0.1357963,60913.0,60912.0,0.05078752]
[1723626112107,0.1367963,60913.0,60912.0,0.05078752]
[1723626112302,0.1367963,60913.0,60912.0,0.04878752]
[1723626113108,0.1367963,60913.0,60912.0,0.04978752]
[1723626113715,0.1367963,60913.0,60912.0,0.04878752]
[1723626115311,0.1367963,60913.0,60910.0,0.01026241]
[1723626115312,0.1367963,60913.0,60910.0,0.07521298]
[1723626115511,0.0832963,60913.0,60910.0,0.07521298]
[1723626116706,0.0832963,60913.0,60911.0,0.082052]
[1723626118515,0.0822963,60913.0,60911.0,0.082052]
[1723626119111,0.0822963,60913.0,60912.0,0.04878609]
[1723626119307,0.0822963,60913.0,60911.0,0.082052]
[1723626119614,0.0822963,60913.0,60911.0,0.084052]
[1723626119815,0.0822963,60913.0,60911.0,0.234052]
[1723626120118,0.0822963,60913.0,60911.0,0.152]
[1723626121005,0.0822963,60913.0,60911.0,0.155]
[1723626121909,0.0822963,60913.0,60912.0,0.1135]
[1723626122110,0.0822963,60913.0,60912.0,0.2635]
[1723626123122,0.0002463,60913.0,60912.0,0.2635]
[1723626123315,0.0002463,60913.0,60912.0,0.345551]
[1723626123521,0.0002463,60913.0,60912.0,0.402051]
[1723626124224,0.0002463,60913.0,60912.0,0.403051]
[1723626124711,0.0002463,60913.0,60912.0,0.48455464]
[1723626124916,0.0002463,60913.0,60912.0,0.405051]
[1723626127018,0.09839735,60913.0,60912.0,0.405051]
[1723626127916,0.0002463,60913.0,60912.0,0.348551]
[1723626128110,0.09857115,60913.0,60912.0,0.348551]
[1723626128316,0.12516808,60913.0,60912.0,0.348551]
[1723626128511,0.02684323,60913.0,60912.0,0.348551]
[1723626129017,0.0985703,60913.0,60912.0,0.709351]
[1723626129221,0.02684323,60913.0,60912.0,0.709351]
[1723626129526,0.12516723,60913.0,60912.0,0.709351]
[1723626130017,0.02684323,60913.0,60912.0,0.709351]
[1723626130413,0.12516723,60913.0,60912.0,0.709351]
[1723626131020,0.12516723,60913.0,60912.0,0.348551]
[1723626131720,0.02684323,60913.0,60912.0,0.348551]
[1723626131918,0.09859092,60913.0,60912.0,0.348551]
[1723626132120,0.12518785,60913.0,60912.0,0.348551]
[1723626132320,0.12518785,60913.0,60912.0,0.2665]
[1723626132321,0.10889323,60913.0,60912.0,0.2665]
[1723626132919,0.09860178,60913.0,60912.0,0.2665]
[1723626133122,0.0002463,60913.0,60912.0,0.348551]
[1723626133624,0.02684382,60913.0,60912.0,0.348551]
[1723626134214,0.10889382,60913.0,60912.0,0.2665]
[1723626135114,0.0822963,60913.0,60912.0,0.2665]
[1723626135423,0.1957963,60913.0,60912.0,0.06815547]
[1723626135621,0.1957963,60913.0,60912.0,0.003]
[1723626138541,0.2778463,60913.0,60912.0,0.003]
[1723626138824,0.3352463,60913.0,60912.0,0.003]
[1723626139725,0.3352463,60913.0,60912.0,0.001]
[1723626140119,0.3352463,60913.0,60912.0,0.003]
[1723626140319,0.6960463,60913.0,60912.0,0.003]
[1723626140520,0.7616282,60913.0,60912.0,0.003]
[1723626140720,0.78844158,60913.0,60912.0,0.00615857]
[1723626140934,0.164108,60910.0,60909.0,0.00615857]
[1723626141226,0.082059,60906.0,60904.0,0.06515547]
[1723626141526,0.082062,60904.0,60903.0,0.17865547]
[1723626142229,0.082062,60904.0,60903.0,0.188841]
[1723626142425,0.082062,60904.0,60903.0,0.12368553]
[1723626143529,0.164124,60904.0,60903.0,0.12368553]
[1723626144428,0.082062,60904.0,60903.0,0.12368553]
[1723626144932,0.082062,60904.0,60903.0,0.20574853]
[1723626145527,0.3608,60905.0,60903.0,0.20574853]
[1723626145732,0.082059,60907.0,60903.0,0.270904]
[1723626146030,0.082059,60907.0,60906.0,0.1135]
[1723626146330,0.138456,60909.0,60906.0,0.2835]
[1723626146524,0.0564,60909.0,60906.0,0.34860569]
[1723626146718,0.0564,60909.0,60906.0,0.2835]
[1723626148136,0.082058,60907.0,60906.0,0.2835]
[1723626148736,0.0564,60909.0,60906.0,0.2835]
[1723626149035,0.0564,60909.0,60906.0,0.2885]
[1723626149234,0.138455,60909.0,60906.0,0.2885]
[1723626149536,0.138455,60909.0,60907.0,0.06510569]
[1723626150137,0.220512,60909.0,60907.0,0.06510569]
[1723626150433,0.138455,60909.0,60906.0,0.18760569]
[1723626150734,0.138455,60909.0,60906.0,0.34760569]
[1723626151127,0.138455,60909.0,60906.0,0.34360569]
[1723626151327,0.138455,60909.0,60907.0,0.06510569]
[1723626151328,0.0564,60909.0,60907.0,0.06510569]
[1723626151536,0.0564,60909.0,60908.0,0.06510569]
[1723626151726,0.0564,60909.0,60907.0,0.06810569]
[1723626151932,0.0564,60909.0,60907.0,0.23810569]
[1723626152234,0.0564,60909.0,60908.0,0.06510569]
[1723626152632,0.0564,60909.0,60907.0,0.06810569]
[1723626152939,0.0564,60909.0,60907.0,0.23810569]
[1723626153429,0.0564,60909.0,60908.0,0.06510569]
[1723626154029,0.0564,60909.0,60907.0,0.06910569]
[1723626154228,0.0564,60909.0,60907.0,0.23910569]
[1723626154427,0.0564,60909.0,60908.0,0.06510569]
[1723626154637,0.0564,60909.0,60908.0,0.06509]
[1723626154842,0.138455,60909.0,60908.0,0.06509]
[1723626155230,0.138455,60909.0,60908.0,0.06709]
[1723626155737,0.138455,60909.0,60908.0,0.002]
[1723626156135,0.138455,60909.0,60908.0,0.06709]
[1723626156637,0.138455,60909.0,60908.0,0.002]
[1723626157136,0.16505557,60909.0,60908.0,0.002]
[1723626157936,1.25317057,60909.0,60908.0,0.002]
[1723626158337,1.25317057,60909.0,60908.0,0.005]
[1723626159437,0.85317057,60909.0,60908.0,0.005]
[1723626159945,0.85317057,60909.0,60908.0,0.002]
[1723626159946,1.25317057,60909.0,60908.0,0.002]
[1723626160136,1.25317057,60909.0,60908.0,0.004]
[1723626160539,1.25317057,60909.0,60908.0,0.003]
[1723626160741,1.25317057,60909.0,60908.0,0.001]
[1723626161235,1.25817057,60909.0,60908.0,0.001]
[1723626161440,0.85817057,60909.0,60908.0,0.001]
[1723626161844,0.082065,60902.0,60901.0,0.01082263]
[1723626162044,0.16399876,60902.0,60901.0,0.01082263]
[1723626162242,0.35956376,60902.0,60901.0,0.0002463]
[1723626162544,0.41023403,60902.0,60901.0,0.0002463]
[1723626164141,1.42431458,60902.0,60901.0,0.0032463]
[1723626164947,1.42359688,60902.0,60901.0,0.0032463]
[1723626165245,1.44021405,60902.0,60901.0,0.0052463]
[1723626165947,0.96846963,60902.0,60901.0,0.0052463]
[1723626166356,0.88655058,60902.0,60901.0,0.0052463]
[1723626167747,1.28655058,60902.0,60901.0,0.0052463]
[1723626167950,0.88655058,60902.0,60901.0,0.0052463]
[1723626168851,0.19838558,60902.0,60901.0,0.0052463]
[1723626169051,0.20063974,60902.0,60901.0,0.1187463]
[1723626169852,0.135165,60902.0,60901.0,0.1187463]
[1723626170561,0.135165,60902.0,60901.0,0.0052463]
[1723626170945,0.248665,60902.0,60901.0,0.0052463]
[1723626172055,0.082065,60902.0,60901.0,0.0052463]
[1723626173454,0.195565,60902.0,60901.0,0.0052463]
[1723626174157,0.082065,60902.0,60901.0,0.0052463]
[1723626176756,0.574665,60902.0,60901.0,0.0052463]
[1723626177762,0.082065,60902.0,60901.0,0.0052463]
[1723626178463,1.017537,60902.0,60901.0,0.0052463]
[1723626179958,1.417537,60902.0,60901.0,0.0052463]
[1723626181961,1.499609,60902.0,60901.0,0.0052463]
[1723626183464,1.58152805,60902.0,60901.0,0.0052463]
[1723626183666,1.619609,60902.0,60901.0,0.0052463]
[1723626183867,1.64621976,60902.0,60901.0,0.0052463]
[1723626184564,1.64621976,60902.0,60901.0,3e-07]
[1723626186266,1.75971976,60902.0,60901.0,3e-07]
[1723626187157,0.16416,60896.0,60895.0,0.3902463]
[1723626187362,0.7203611,60896.0,60895.0,0.3902463]
[1723626188063,1.6950811,60896.0,60895.0,0.3902463]
[1723626188765,1.2950811,60896.0,60895.0,0.3902463]
[1723626189266,1.21318,60896.0,60895.0,0.3902463]
[1723626189567,1.29509865,60896.0,60895.0,0.3902463]
[1723626189766,0.63829865,60896.0,60895.0,0.3902463]
[1723626189972,0.55638,60896.0,60895.0,0.3902463]
[1723626190664,0.62192059,60896.0,60895.0,0.3912463]
[1723626191569,0.56691508,60896.0,60895.0,0.3912463]
[1723626191970,0.55638,60896.0,60895.0,0.3912463]
[1723626195374,0.62059839,60896.0,60895.0,0.3912463]
[1723626197064,0.5829896,60896.0,60895.0,0.3912463]
[1723626199776,0.2221896,60896.0,60895.0,0.3912463]
[1723626199979,0.5829896,60896.0,60895.0,0.3912463]
[1723626200975,0.62052415,60896.0,60895.0,0.3912463]
[1723626202381,0.55638,60896.0,60895.0,0.3912463]
[1723626202771,0.19558,60896.0,60895.0,0.3912463]
[1723626203078,0.55638,60896.0,60895.0,0.3912463]
[1723626205277,0.63846,60896.0,60895.0,0.3912463]
[1723626205478,0.72043167,60896.0,60895.0,0.3912463]
[1723626206379,0.63846,60896.0,60895.0,0.3912463]
[1723626206979,1.61318,60896.0,60895.0,0.3912463]
[1723626207178,1.6397897,60896.0,60895.0,0.3912463]
[1723626207977,1.5577097,60896.0,60895.0,0.3912463]
[1723626212985,1.55771119,60896.0,60895.0,0.3912463]
[1723626213583,2.0168772,60896.0,60895.0,0.3912463]
[1723626214389,1.91851119,60896.0,60895.0,0.3912463]
[1723626214983,2.0168772,60896.0,60895.0,0.3912463]
[1723626216989,1.2952772,60896.0,60895.0,0.3912463]
[1723626217189,1.91851119,60896.0,60895.0,0.3912463]
[1723626217488,1.61698212,60896.0,60895.0,0.3912463]
[1723626218191,0.92876212,60896.0,60895.0,0.3912463]
[1723626218486,0.83029119,60896.0,60895.0,0.3912463]
[1723626218696,0.80368,60896.0,60895.0,0.3912463]
[1723626218889,0.91718,60896.0,60895.0,0.3912463]
[1723626219391,0.94378956,60896.0,60895.0,0.3912463]
[1723626219592,0.83028956,60896.0,60895.0,0.3912463]
[1723626219894,0.06564754,60899.0,60895.0,1.3973863]
[1723626220197,0.06564754,60901.0,60900.0,0.082074]
[1723626220386,0.06564754,60904.0,60901.0,0.0527]
[1723626220587,0.06564754,60905.0,60903.0,0.19557]
[1723626220880,0.06564754,60906.0,60903.0,0.1135]
[1723626221080,0.06564754,60910.0,60909.0,0.082062]
[1723626221292,0.06564754,60912.0,60910.0,0.08206]
[1723626221489,0.0002463,60913.0,60911.0,0.2232]
[1723626222590,0.1137463,60913.0,60911.0,0.1097]
[1723626222985,0.1217463,60913.0,60911.0,0.1107]
[1723626223995,0.0082463,60913.0,60911.0,0.1107]
[1723626224590,0.0082463,60913.0,60911.0,0.12098927]
[1723626226498,0.082058,60912.0,60911.0,0.01128927]
[1723626229001,0.082058,60912.0,60911.0,0.01228927]
[1723626229195,0.090058,60912.0,60911.0,0.01228927]
[1723626229395,0.008,60912.0,60911.0,0.01228927]
[1723626229898,0.00788631,60913.0,60911.0,0.01228927]
[1723626230398,0.444015,60915.0,60911.0,0.01228927]
[1723626230399,0.082055,60914.0,60912.0,0.0539]
[1723626231800,0.008,60913.0,60912.0,0.0539]
[1723626232397,0.12226463,60913.0,60909.0,0.06011231]
[1723626232598,0.18070243,60912.0,60910.0,0.08206]
[1723626232793,0.0664378,60911.0,60907.0,0.0002463]
[1723626233000,0.0664378,60910.0,60907.0,0.0002463]
[1723626233203,0.0664378,60909.0,60907.0,0.0002463]
[1723626233397,0.0664378,60908.0,60907.0,0.0002463]
[1723626233702,0.03983752,60908.0,60907.0,0.0002463]
[1723626235404,0.06422842,60908.0,60907.0,0.0002463]
[1723626236011,0.002,60908.0,60907.0,0.01072148]
[1723626236313,0.14829142,60908.0,60907.0,0.01072148]
[1723626237012,0.11666358,60908.0,60907.0,0.01072148]
[1723626239511,0.090063,60908.0,60907.0,0.01072148]
[1723626240703,0.008,60908.0,60907.0,0.09278548]
[1723626240918,0.008,60908.0,60907.0,0.24278548]
[1723626241215,0.008,60908.0,60907.0,0.73534548]
[1723626241606,0.008,60908.0,60907.0,0.24278548]
[1723626246015,0.008,60908.0,60907.0,0.35628548]
[1723626251922,0.08961407,60908.0,60907.0,0.35628548]
[1723626252521,0.008,60908.0,60907.0,0.35628548]
[1723626254421,0.008,60908.0,60907.0,0.48130392]
[1723626257129,0.008,60908.0,60907.0,0.48130808]
[1723626261223,0.008,60908.0,60907.0,0.97386808]
[1723626261626,0.008,60908.0,60907.0,0.48130808]
[1723626261927,0.008,60908.0,60907.0,0.97386714]
[1723626262520,0.008,60908.0,60907.0,0.48130714]
[1723626263418,0.008,60908.0,60907.0,0.97386714]
[1723626264626,0.008,60908.0,60907.0,0.48130714]
[1723626264824,0.008,60908.0,60907.0,0.56337114]
[1723626265129,0.06562201,60916.0,60907.0,1.37386714]
[1723626265332,0.06562201,60916.0,60915.0,0.082054]
[1723626265532,0.3608,60917.0,60916.0,0.082052]
[1723626265732,0.3608,60917.0,60916.0,0.195552]
[1723626266623,0.42642201,60917.0,60916.0,0.14723514]
[1723626266827,0.3608,60917.0,60916.0,0.082052]
[1723626268523,0.3638,60917.0,60916.0,0.082052]
[1723626269431,0.39039882,60917.0,60916.0,0.082052]
[1723626269638,0.47444982,60917.0,60916.0,0.082052]
[1723626271335,0.50589882,60917.0,60908.0,0.04889553]
[1723626271642,0.082063,60908.0,60907.0,0.0002463]
[1723626271940,0.082054,60915.0,60907.0,0.0002463]
[1723626271941,0.08203275,60909.0,60907.0,0.0002463]
[1723626272143,0.08203275,60909.0,60908.0,0.16237785]
[1723626272342,0.08203275,60910.0,60909.0,0.082062]
[1723626272528,0.08203275,60910.0,60909.0,0.38443905]
[1723626272735,0.08203275,60911.0,60910.0,0.08206]
[1723626272935,0.08203275,60911.0,60910.0,0.24443624]
[1723626273336,0.08203275,60911.0,60910.0,0.40443624]
[1723626274242,0.08203275,60912.0,60911.0,0.082059]
[1723626274446,0.08203275,60912.0,60911.0,0.41444932]
[1723626277149,0.08203275,60912.0,60911.0,0.41744932]
[1723626277348,0.08203275,60913.0,60912.0,0.082058]
[1723626277651,0.42642293,60917.0,60916.0,0.082052]
[1723626277836,0.42642293,60917.0,60916.0,0.195552]
[1723626278145,0.13523275,60922.0,60916.0,0.195552]
[1723626278146,0.414,60922.0,60916.0,0.23790553]
[1723626278340,0.414,60922.0,60916.0,0.19487478]
[1723626278543,0.414,60922.0,60918.0,0.08137478]
[1723626278945,0.414,60922.0,60918.0,0.08205]
[1723626281552,0.414,60922.0,60918.0,0.09474946]
[1723626282050,0.0032463,60919.0,60918.0,0.09474946]
[1723626282550,0.0062463,60919.0,60918.0,0.09474946]
[1723626288347,0.0062463,60919.0,60918.0,0.14353228]
[1723626292642,0.0062463,60919.0,60918.0,0.01269946]
[1723626292849,0.0882943,60919.0,60918.0,0.06504248]
[1723626294950,0.0882943,60919.0,60917.0,0.1135]
[1723626295148,0.08205,60918.0,60917.0,0.1135]
[1723626295746,0.082051,60917.0,60916.0,0.07760637]
[1723626295948,0.082051,60917.0,60913.0,0.06504248]
[1723626296255,0.1135,60918.0,60915.0,0.04880574]
[1723626296256,0.082052,60916.0,60915.0,0.04880574]
[1723626296945,0.082054,60915.0,60914.0,0.04880574]
[1723626297352,0.17936923,60919.0,60917.0,0.082051]
[1723626297353,0.08205,60918.0,60917.0,0.082051]
[1723626297556,0.08505,60918.0,60917.0,0.195551]
[1723626298847,0.08205,60918.0,60917.0,0.195551]
[1723626299253,0.08205,60918.0,60917.0,0.24435393]
[1723626300155,0.08205,60918.0,60917.0,0.20856402]
[1723626300459,0.0002463,60919.0,60918.0,0.08205]
[1723626300655,0.0002463,60919.0,60918.0,0.13085853]
[1723626301244,0.0002463,60919.0,60918.0,0.08205]
[1723626301554,0.0002463,60919.0,60918.0,0.04881258]
[1723626301555,0.0822943,60919.0,60918.0,0.04881258]
[1723626302253,0.0822943,60919.0,60917.0,0.20856402]
[1723626302851,0.0822943,60919.0,60918.0,0.082049]
[1723626302852,0.0002463,60919.0,60918.0,0.082049]
[1723626303360,0.0032463,60919.0,60918.0,0.082049]
[1723626303751,0.0002463,60919.0,60918.0,0.082049]
[1723626304256,0.0002463,60919.0,60917.0,0.12651302]
[1723626304555,0.082049,60918.0,60917.0,0.12651302]
[1723626307262,0.085049,60918.0,60917.0,0.12651302]
[1723626307767,0.15067193,60918.0,60917.0,0.1753966]
[1723626309052,0.06862293,60918.0,60917.0,0.20856402]
[1723626309263,0.003,60918.0,60917.0,0.36856402]
[1723626309454,0.06562293,60924.0,60917.0,0.47836402]
[1723626309656,0.06562293,60927.0,60924.0,0.1135]
[1723626309855,0.06562293,60928.0,60926.0,0.1135]
[1723626310055,0.06562293,60928.0,60927.0,0.16236874]
[1723626310263,0.06562293,60929.0,60927.0,0.16236874]
[1723626310457,0.06562293,60929.0,60928.0,0.1135]
[1723626311357,0.06562293,60930.0,60928.0,0.1135]
[1723626311760,0.082032,60931.0,60928.0,0.1135]
[1723626311761,0.06562293,60929.0,60928.0,0.1135]
[1723626312150,0.082037,60928.0,60926.0,0.1135]
[1723626312459,0.4743,60927.0,60922.0,0.04911504]
[1723626312649,0.06553658,60924.0,60922.0,0.16261504]
[1723626312857,0.0536,60923.0,60922.0,0.09490807]
[1723626313062,0.0536,60923.0,60922.0,0.20840807]
[1723626313454,0.06553658,60928.0,60922.0,0.48716407]
[1723626313651,0.082029,60933.0,60927.0,0.3608]
[1723626313652,0.06553658,60929.0,60927.0,0.3608]
[1723626313858,0.06553658,60930.0,60928.0,0.1135]
[1723626314062,0.06553658,60930.0,60929.0,0.1135]
[1723626314251,0.06553658,60931.0,60929.0,0.1135]
[1723626314665,0.0482,60932.0,60929.0,0.17863059]
[1723626315062,0.11373658,60932.0,60929.0,0.1135]
[1723626315265,0.0482,60932.0,60931.0,0.04885097]
[1723626316164,0.0482,60932.0,60930.0,0.04885097]
[1723626317365,0.0482,60932.0,60929.0,0.1261627]
[1723626317366,0.0482,60932.0,60929.0,0.17501367]
[1723626317763,0.0482,60932.0,60929.0,0.1261627]
[1723626318071,0.0482,60932.0,60929.0,0.17501367]
[1723626319260,0.0482,60932.0,60929.0,0.1261627]
[1723626320765,0.130231,60932.0,60929.0,0.1261627]
[1723626322268,0.082032,60931.0,60929.0,0.1261627]
[1723626322671,0.02659263,60930.0,60929.0,0.1261627]
[1723626323067,0.14800548,60930.0,60929.0,0.1261627]
[1723626323376,0.10862563,60930.0,60929.0,0.1261627]
[1723626328779,0.02659263,60930.0,60929.0,0.1261627]
[1723626329179,0.06594446,60930.0,60929.0,0.1261627]
[1723626329569,0.442832,60931.0,60929.0,0.1261627]
[1723626332880,0.3608,60931.0,60929.0,0.1261627]
[1723626333182,0.0482,60932.0,60929.0,0.17501367]
[1723626333370,0.0482,60932.0,60930.0,0.04885097]
[1723626333575,0.0482,60932.0,60929.0,0.18318991]
[1723626333776,0.0822743,60934.0,60929.0,0.17501367]
[1723626334075,0.0102463,60934.0,60933.0,0.1135]
[1723626335189,0.0002463,60934.0,60933.0,0.24437997]
[1723626336183,0.0002463,60934.0,60933.0,0.195529]
[1723626336876,0.0002463,60934.0,60933.0,0.196529]
[1723626337078,0.0002463,60934.0,60933.0,0.1145]
[1723626337573,0.0268367,60934.0,60933.0,0.1145]
[1723626337974,0.08517882,60934.0,60933.0,0.1145]
[1723626338180,0.12522813,60934.0,60933.0,0.1145]
[1723626338886,0.20725613,60934.0,60933.0,0.1145]
[1723626339082,0.20725613,60934.0,60933.0,0.001]
[1723626339688,0.25875613,60934.0,60933.0,0.001]
[1723626340072,0.25875613,60934.0,60933.0,0.1145]
[1723626340979,0.20725613,60934.0,60933.0,0.1145]